[Event "Régional Jeunes Occitanie 2024"]
[Site "L'Isle Jourdain, France"]
[Date "2024.02.22"]
[Round "4.4"]
[White "MOREL, Yohann"]
[Black "RAMANANTSOA, Stanley"]
[Result "1-0"]
[TimeControl "1h30 + 30s/cps"]
[WhiteElo "1647"]
[BlackElo "1664"]

1. e4 {[%clk 01:30:51]} {[%emt 00:00:08]} c5 {[%clk 01:30:54]} {[%emt
00:00:07]} 2. c3 {[%clk 01:30:55]} {[%emt 00:00:26]} Nf6 {[%clk 01:31:19]}
{[%emt 00:00:05]} 3. e5 {[%clk 01:31:21]} {[%emt 00:00:04]} Nd5 {[%clk
01:31:45]} {[%emt 00:00:04]} 4. d4 {[%clk 01:31:48]} {[%emt 00:00:03]} cxd4
{[%clk 01:32:01]} {[%emt 00:00:13]} 5. Nf3 {[%clk 01:32:15]} {[%emt 00:00:03]}
Nc6 {[%clk 01:32:10]} {[%emt 00:00:22]} 6. cxd4 {[%clk 01:32:37]} {[%emt
00:00:07]} d6 {[%clk 01:31:11]} {[%emt 00:01:30]} 7. Bc4 {[%clk 01:33:01]}
{[%emt 00:00:06]} e6 {[%clk 01:30:58]} {[%emt 00:00:42]} 8. O-O {[%clk
01:27:42]} {[%emt 00:05:50]} Nb6 {[%clk 01:30:14]} {[%emt 00:01:14]} 9. Bb3
{[%clk 01:27:05]} {[%emt 00:01:07]} dxe5 {[%clk 01:29:57]} {[%emt 00:00:47]} 10.
dxe5 {[%clk 01:26:25]} {[%emt 00:01:10]} Be7 {[%clk 01:27:20]} {[%emt
00:03:07]} 11. Qxd8+ {[%clk 01:25:39]} {[%emt 00:01:16]} Bxd8 {[%clk 01:27:19]}
{[%emt 00:00:31]} 12. Nc3 {[%clk 01:26:04]} {[%emt 00:00:05]} Nd7 {[%clk
01:16:35]} {[%emt 00:11:13]} 13. Bf4 {[%clk 01:22:49]} {[%emt 00:03:45]} a6
{[%clk 01:16:48]} {[%emt 00:00:18]} 14. Ne4 {[%clk 01:12:43]} {[%emt 00:10:36]}
Bc7 {[%clk 01:12:38]} {[%emt 00:04:40]} 15. Rac1 {[%clk 01:12:23]} {[%emt
00:00:50]} Bxe5 {[%clk 01:02:53]} {[%emt 00:10:15]} 16. Nxe5 {[%clk 01:11:26]}
{[%emt 00:01:28]} Ncxe5 {[%clk 00:53:39]} {[%emt 00:09:43]} 17. Bxe5 {[%clk
01:06:40]} {[%emt 00:05:16]} Nxe5 {[%clk 00:54:04]} {[%emt 00:00:06]} 18. Nd6+
{[%clk 01:06:59]} {[%emt 00:00:10]} Ke7 {[%clk 00:53:25]} {[%emt 00:01:09]} 19.
Nxb7 {[%clk 01:06:29]} {[%emt 00:01:00]} Bxb7 {[%clk 00:51:36]} {[%emt
00:02:19]} 20. Rc7+ {[%clk 01:06:58]} {[%emt 00:00:02]} Kf6 {[%clk 00:51:32]}
{[%emt 00:00:33]} 21. Rxb7 {[%clk 01:07:20]} {[%emt 00:00:08]} Rhd8 {[%clk
00:50:46]} {[%emt 00:01:17]} 22. f4 {[%clk 01:01:24]} {[%emt 00:06:26]} Nd7
{[%clk 00:38:12]} {[%emt 00:13:04]} 23. Rc1 {[%clk 00:55:14]} {[%emt 00:06:40]}
Rab8 {[%clk 00:35:22]} {[%emt 00:03:20]} 24. Ra7 {[%clk 00:52:33]} {[%emt
00:03:11]} Ra8 {[%clk 00:31:04]} {[%emt 00:04:48]} 25. Rxa8 {[%clk 00:46:16]}
{[%emt 00:06:47]} Rxa8 {[%clk 00:31:17]} {[%emt 00:00:17]} 26. Rc7 {[%clk
00:46:45]} {[%emt 00:00:02]} Nb6 {[%clk 00:28:10]} {[%emt 00:03:36]} 27. f5
{[%clk 00:45:57]} {[%emt 00:01:18]} Nd5 {[%clk 00:26:49]} {[%emt 00:01:52]} 28.
Rd7 {[%clk 00:45:22]} {[%emt 00:01:06]} Rc8 {[%clk 00:24:33]} {[%emt 00:02:45]}
29. fxe6 {[%clk 00:42:28]} {[%emt 00:03:25]} fxe6 {[%clk 00:24:47]} {[%emt
00:00:30]} 30. Rd6 {[%clk 00:42:08]} {[%emt 00:00:36]} Ke5 {[%clk 00:24:08]}
{[%emt 00:01:09]} 31. Rxa6 {[%clk 00:42:20]} {[%emt 00:00:18]} Rc1+ {[%clk
00:24:16]} {[%emt 00:00:22]} 32. Kf2 {[%clk 00:42:43]} {[%emt 00:00:08]} Rb1
{[%clk 00:24:31]} {[%emt 00:00:15]} 33. Ra7 {[%clk 00:38:17]} {[%emt 00:04:56]}
Rxb2+ {[%clk 00:24:30]} {[%emt 00:00:31]} 34. Kf3 {[%clk 00:38:39]} {[%emt
00:00:09]} Kf6 {[%clk 00:22:10]} {[%emt 00:33:50]} 35. h4 {[%clk 00:33:51]} h5
{[%clk 00:20:52]} 36. g3 {[%clk 00:11:40]} g6 {[%clk 00:20:55]} 37. Ra6 {[%clk
00:11:04]} {[%emt 00:00:19]} Ke5 {[%clk 00:20:25]} {[%emt 00:00:59]} 38. Ra4
{[%clk 00:10:18]} {[%emt 00:01:17]} Kf5 {[%clk 00:17:44]} {[%emt 00:03:12]} 39.
Rd4 {[%clk 00:10:08]} {[%emt 00:00:40]} Ke5 {[%clk 00:16:49]} {[%emt 00:01:25]}
40. Re4+ {[%clk 00:10:36]} {[%emt 00:00:02]} Kf5 {[%clk 00:15:47]} {[%emt
00:05:50]} 41. Re2 {[%clk 00:10:31]} Rxe2 {[%clk 00:12:36]} 42. Kxe2 {[%clk
00:11:00]} Nc3+ {[%clk 00:09:06]} {[%emt 00:03:58]} 43. Kf3 {[%clk 00:10:31]}
{[%emt 00:01:00]} e5 {[%clk 00:07:46]} {[%emt 00:01:50]} 44. a4 {[%clk
00:09:30]} {[%emt 00:01:31]} e4+ {[%clk 00:03:53]} {[%emt 00:08:21]} 45. Kf2
{[%clk 00:07:08]} g5 {[%clk 00:03:44]} 46. hxg5 {[%clk 00:06:09]} {[%emt
00:01:02]} Kxg5 {[%clk 00:04:03]} {[%emt 00:00:11]} 47. a5 {[%clk 00:06:20]}
{[%emt 00:00:19]} h4 {[%clk 00:01:25]} {[%emt 00:03:07]} 48. gxh4+ {[%clk
00:06:30]} {[%emt 00:00:19]} Kxh4 {[%clk 00:01:49]} {[%emt 00:00:06]} 49. a6
{[%clk 00:06:49]} {[%emt 00:00:12]} Nb5 {[%clk 00:02:05]} {[%emt 00:00:14]} 50.
Bc4 {[%clk 00:07:04]} {[%emt 00:00:15]} Nc7 {[%clk 00:00:44]} {[%emt 00:01:51]}
51. a7 {[%clk 00:07:12]} {[%emt 00:00:22]} Kg5 {[%clk 00:00:53]} {[%emt
00:00:21]} 52. Ke3 {[%clk 00:07:29]} {[%emt 00:00:13]} Kf6 {[%clk 00:01:15]}
{[%emt 00:16:16]} 53. Kxe4 {[%clk 00:03:56]} Ke7 {[%clk 00:01:10]} 54. Ke5
{[%clk 00:04:22]} Kd7 {[%clk 00:00:44]} 55. Bb5+ {[%clk 00:02:02]} Ke7 {[%clk
00:00:35]} 56. Bc6 {[%clk 00:01:33]} Kd8 {[%clk 00:00:34]} 57. Kd6 {[%clk
00:01:22]} Kc8 {[%clk 00:00:48]} 58. Kc5 {[%clk 00:01:32]} Ne6+ {[%clk
00:00:38]} 59. Kb6 {[%clk 00:01:42]} Nc7 {[%clk 00:00:53]} 60. Be4 {[%clk
00:01:29]} Kd7 {[%clk 00:00:43]} 61. Kb7 {[%clk 00:01:36]} Kd6 {[%clk
00:00:33]} 62. Bf5 {[%clk 00:01:51]} Na8 {[%clk 00:00:31]} {[%emt 00:00:13]} 63.
Kxa8 {[%clk 00:02:18]} {[%emt 00:00:03]} Kc7 {[%clk 00:00:55]} {[%emt
00:00:06]} 64. Be4 {[%clk 00:02:43]} {[%emt 00:00:05]} Kc8 {[%clk 00:01:09]}
{[%emt 00:00:15]} 65. Bf3 {[%clk 00:03:10]} {[%emt 00:00:04]} Kc7 {[%clk
00:01:33]} {[%emt 00:00:06]} 66. Bb7 {[%clk 00:03:37]} {[%emt 00:00:03]} 1-0

[Event "Régional Jeunes Occitanie 2024"]
[Site "L'Isle Jourdain, France"]
[Date "2024.02.22"]
[Round "4.5"]
[White "WITTMANN, Paul"]
[Black "HUDE, Hugo"]
[Result "1-0"]
[TimeControl "1h30 + 30s/cps"]
[WhiteElo "1536"]
[BlackElo "1592"]

1. e4 {[%clk 01:29:53]} {[%emt 00:01:06]} e6 {[%clk 01:30:48]} {[%emt
00:00:13]} 2. d4 {[%clk 01:29:51]} {[%emt 00:00:31]} d5 {[%clk 01:31:12]}
{[%emt 00:00:07]} 3. exd5 {[%clk 01:29:51]} {[%emt 00:00:31]} exd5 {[%clk
01:31:28]} {[%emt 00:00:14]} 4. c4 {[%clk 01:30:04]} {[%emt 00:00:16]} c6
{[%clk 01:29:34]} {[%emt 00:02:24]} 5. Nc3 {[%clk 01:29:36]} {[%emt 00:00:59]}
Nf6 {[%clk 01:28:43]} {[%emt 00:01:20]} 6. Bg5 {[%clk 01:28:43]} {[%emt
00:01:23]} Be7 {[%clk 01:27:34]} {[%emt 00:01:38]} 7. Qb3 {[%clk 01:25:44]}
{[%emt 00:03:30]} Qb6 {[%clk 01:21:06]} {[%emt 00:06:56]} 8. Nf3 {[%clk
01:14:48]} {[%emt 00:11:28]} Be6 {[%clk 01:17:19]} {[%emt 00:04:16]} 9. Qxb6
{[%clk 01:08:54]} {[%emt 00:06:25]} axb6 {[%clk 01:17:00]} {[%emt 00:00:49]} 10.
cxd5 {[%clk 01:09:07]} {[%emt 00:00:16]} Nxd5 {[%clk 01:13:44]} {[%emt
00:03:46]} 11. Bc4 {[%clk 01:05:48]} {[%emt 00:03:50]} Bb4 {[%clk 01:10:51]}
{[%emt 00:03:18]} 12. Bd2 {[%clk 00:57:47]} {[%emt 00:08:36]} Nxc3 {[%clk
01:08:49]} {[%emt 00:02:32]} 13. Bxe6 {[%clk 00:55:33]} {[%emt 00:02:45]} fxe6
{[%clk 01:07:52]} {[%emt 00:01:26]} 14. bxc3 {[%clk 00:55:14]} {[%emt
00:00:49]} Ba3 {[%clk 01:06:49]} {[%emt 00:01:34]} 15. Rb1 {[%clk 00:53:11]}
{[%emt 00:02:33]} Nd7 {[%clk 01:05:14]} {[%emt 00:02:04]} 16. O-O {[%clk
00:49:02]} {[%emt 00:04:39]} Be7 {[%clk 01:02:41]} {[%emt 00:03:02]} 17. Rfe1
{[%clk 00:42:10]} {[%emt 00:07:23]} Rxa2 {[%clk 00:58:26]} {[%emt 00:04:45]} 18.
Rxe6 {[%clk 00:42:19]} {[%emt 00:00:21]} Kd8 {[%clk 00:56:54]} {[%emt
00:02:03]} 19. Rbe1 {[%clk 00:36:18]} {[%emt 00:06:31]} Bf6 {[%clk 00:54:41]}
{[%emt 00:02:40]} 20. Ng5 {[%clk 00:32:33]} {[%emt 00:04:18]} Kc8 {[%clk
00:47:10]} {[%emt 00:07:59]} 21. Bf4 {[%clk 00:22:11]} {[%emt 00:10:55]} h6
{[%clk 00:42:25]} {[%emt 00:05:15]} 22. Nf7 {[%clk 00:22:16]} {[%emt 00:00:25]}
Rd8 {[%clk 00:32:54]} {[%emt 00:10:01]} 23. Nxd8 {[%clk 00:17:43]} {[%emt
00:05:03]} Bxd8 {[%clk 00:33:15]} {[%emt 00:00:09]} 24. h3 {[%clk 00:17:29]}
{[%emt 00:32:09]} Nf6 {[%clk 00:31:51]} 25. Bd6 {[%clk 00:16:53]} Nd5 {[%clk
00:31:10]} 26. c4 {[%clk 00:16:21]} Nc7 {[%clk 00:29:52]} 27. Rg6 {[%clk
00:15:45]} Bh4 {[%clk 00:27:33]} 28. g3 {[%clk 00:13:20]} Bf6 {[%clk 00:26:57]}
29. Be5 {[%clk 00:12:36]} Bd8 30. Bxc7 {[%clk 00:11:42]} Kxc7 {[%clk 00:22:42]}
31. Rxg7+ {[%clk 00:11:33]} Kc8 {[%clk 00:22:13]} 32. d5 {[%clk 00:07:20]} cxd5
{[%clk 00:19:04]} {[%emt 00:01:25]} 33. Rd1 {[%clk 00:07:01]} {[%emt 00:00:50]}
Re2 {[%clk 00:17:41]} {[%emt 00:01:53]} 34. Rxd5 {[%clk 00:06:34]} {[%emt
00:00:57]} Re8 {[%clk 00:17:52]} {[%emt 00:00:18]} 35. Rdd7 {[%clk 00:06:40]}
{[%emt 00:00:24]} h5 {[%clk 00:17:44]} {[%emt 00:00:38]} 36. Rxb7 {[%clk
00:06:55]} {[%emt 00:00:15]} h4 {[%clk 00:18:05]} {[%emt 00:00:08]} 37. Ra7
{[%clk 00:06:24]} {[%emt 00:01:01]} Kb8 {[%clk 00:18:31]} {[%emt 00:00:04]} 38.
Rgb7+ {[%clk 00:06:39]} {[%emt 00:00:14]} Kc8 {[%clk 00:18:39]} {[%emt
00:00:23]} 39. Rh7 {[%clk 00:07:05]} {[%emt 00:00:04]} Kb8 {[%clk 00:18:58]}
{[%emt 00:00:11]} 40. Ra3 {[%clk 00:07:08]} {[%emt 00:04:59]} b5 {[%clk
00:19:07]} 41. cxb5 {[%clk 00:07:09]} hxg3 {[%clk 00:19:34]} 42. fxg3 {[%clk
00:07:18]} Rf8 {[%clk 00:19:37]} 43. Kg2 {[%clk 00:06:53]} Bb6 {[%clk
00:19:54]} 44. Rf3 {[%clk 00:06:59]} Re8 {[%clk 00:19:37]} 45. h4 {[%clk
00:07:00]} Re2+ {[%clk 00:18:26]} {[%emt 00:01:38]} 46. Kh3 {[%clk 00:07:06]}
{[%emt 00:00:24]} Re8 {[%clk 00:18:44]} {[%emt 00:00:12]} 47. h5 {[%clk
00:06:52]} {[%emt 00:00:44]} Rg8 {[%clk 00:18:51]} {[%emt 00:00:23]} 48. h6
{[%clk 00:06:49]} {[%emt 00:00:32]} Bc7 {[%clk 00:17:42]} {[%emt 00:01:40]} 49.
Rg7 {[%clk 00:06:48]} {[%emt 00:00:31]} Rc8 {[%clk 00:16:47]} {[%emt 00:01:25]}
50. h7 {[%clk 00:06:18]} {[%emt 00:01:00]} Bd8 {[%clk 00:15:43]} {[%emt
00:08:11]} 51. h8=Q {[%clk 00:05:13]} Ka8 {[%clk 00:15:50]} 52. Rf8 {[%clk
00:04:54]} Bc7 {[%clk 00:15:55]} 53. Rxc7 {[%clk 00:05:01]} Kb8 {[%clk
00:15:50]} 54. Rfxc8# {[%clk 00:04:46]} 1-0

[Event "Régional Jeunes Occitanie 2024"]
[Site "L'Isle Jourdain, France"]
[Date "2024.02.22"]
[Round "4.1"]
[White "BEUCHER, Gauthier"]
[Black "MORENO-CHABOT, Clement"]
[Result "0-1"]
[TimeControl "1h30 + 30s/cps"]
[WhiteElo "1484"]
[BlackElo "1771"]

1. e4 {[%clk 01:30:57]} {[%emt 00:00:02]} c5 {[%clk 01:30:56]} {[%emt
00:00:05]} 2. Nf3 {[%clk 01:31:14]} {[%emt 00:00:12]} Nc6 {[%clk 01:31:20]}
{[%emt 00:00:06]} 3. d4 {[%clk 01:31:35]} {[%emt 00:00:08]} cxd4 {[%clk
01:31:44]} {[%emt 00:00:07]} 4. Nxd4 {[%clk 01:31:59]} {[%emt 00:00:06]} g6
{[%clk 01:32:08]} {[%emt 00:00:06]} 5. Nc3 {[%clk 01:32:15]} {[%emt 00:00:14]}
Bg7 {[%clk 01:32:33]} {[%emt 00:00:06]} 6. Be3 {[%clk 01:32:33]} {[%emt
00:00:11]} Nf6 {[%clk 01:32:52]} {[%emt 00:00:12]} 7. Be2 {[%clk 01:31:20]}
{[%emt 00:01:42]} O-O {[%clk 01:33:14]} {[%emt 00:00:09]} 8. O-O {[%clk
01:31:45]} {[%emt 00:00:05]} d6 {[%emt 00:08:14]} 9. f4 {[%clk 01:26:48]} Bd7
{[%clk 01:27:11]} {[%emt 00:04:15]} 10. Bf2 {[%clk 01:17:43]} {[%emt 00:09:35]}
Nxd4 {[%clk 01:22:20]} {[%emt 00:05:22]} 11. Bxd4 {[%clk 01:17:54]} {[%emt
00:00:19]} Bc6 {[%clk 01:22:41]} {[%emt 00:00:10]} 12. Bf3 {[%clk 01:16:56]}
{[%emt 00:01:28]} Qa5 {[%clk 01:18:28]} {[%emt 00:04:43]} 13. e5 {[%clk
01:01:04]} {[%emt 00:16:21]} Bxf3 {[%clk 01:08:07]} {[%emt 00:10:51]} 14. Rxf3
{[%clk 00:58:21]} {[%emt 00:03:13]} dxe5 {[%clk 01:03:46]} {[%emt 00:04:51]} 15.
fxe5 {[%clk 00:52:54]} {[%emt 00:05:56]} Ng4 {[%clk 01:01:42]} {[%emt
00:02:35]} 16. e6 {[%clk 00:52:37]} {[%emt 00:00:47]} Rad8 {[%clk 01:01:43]}
{[%emt 00:00:29]} 17. Rd3 {[%clk 00:49:58]} {[%emt 00:03:08]} Bxd4+ {[%clk
01:00:28]} {[%emt 00:01:46]} 18. Rxd4 {[%clk 00:50:15]} {[%emt 00:00:12]} Qb6
{[%clk 00:59:19]} {[%emt 00:01:40]} 19. Ne2 {[%clk 00:47:28]} {[%emt 00:03:18]}
fxe6 {[%clk 00:57:48]} {[%emt 00:02:01]} 20. h3 {[%clk 00:45:54]} {[%emt
00:02:03]} e5 {[%clk 00:56:44]} {[%emt 00:01:34]} 21. hxg4 {[%clk 00:46:06]}
{[%emt 00:00:18]} exd4 {[%clk 00:57:05]} {[%emt 00:00:09]} 22. Qd3 {[%clk
00:44:59]} {[%emt 00:01:36]} Qf6 {[%clk 00:52:27]} {[%emt 00:05:09]} 23. Ng3
{[%clk 00:44:20]} {[%emt 00:01:09]} Qf2+ {[%clk 00:52:14]} {[%emt 00:00:44]} 24.
Kh2 {[%clk 00:44:34]} {[%emt 00:00:15]} Qe3 {[%clk 00:46:11]} {[%emt 00:06:34]}
0-1

[Event "Régional Jeunes Occitanie 2024"]
[Site "L'Isle Jourdain, France"]
[Date "2024.02.22"]
[Round "4.7"]
[White "BAUER, Pierre"]
[Black "GRAND, Theophile"]
[Result "1-0"]
[TimeControl "1h30 + 30s/cps"]
[WhiteElo "1765"]
[BlackElo "1325"]

1. c4 {[%clk 01:30:46]} {[%emt 00:00:13]} e5 {[%clk 01:30:33]} {[%emt
00:00:27]} 2. Nc3 {[%clk 01:31:09]} {[%emt 00:00:07]} Nf6 {[%clk 01:30:40]}
{[%emt 00:00:23]} 3. g3 {[%clk 01:31:33]} {[%emt 00:00:07]} Bb4 {[%clk
01:30:37]} {[%emt 00:00:33]} 4. Bg2 {[%clk 01:31:51]} {[%emt 00:00:13]} O-O
{[%clk 01:30:18]} {[%emt 00:00:49]} 5. Qb3 {[%clk 01:30:24]} {[%emt 00:01:57]}
Nc6 {[%clk 01:28:53]} {[%emt 00:01:55]} 6. e3 {[%clk 01:24:40]} {[%emt
00:06:14]} Bxc3 {[%clk 01:24:36]} {[%emt 00:04:46]} 7. Qxc3 {[%clk 01:23:38]}
{[%emt 00:01:31]} e4 {[%clk 01:23:52]} {[%emt 00:01:15]} 8. Ne2 {[%clk
01:21:10]} {[%emt 00:02:57]} d6 {[%clk 01:16:59]} {[%emt 00:07:24]} 9. d4
{[%clk 01:16:21]} {[%emt 00:05:19]} exd3 {[%clk 01:15:26]} {[%emt 00:02:02]} 10.
Qxd3 {[%clk 01:16:07]} {[%emt 00:00:44]} Ne5 {[%clk 01:12:38]} {[%emt
00:03:18]} 11. Qc2 {[%clk 01:14:03]} {[%emt 00:02:33]} Be6 {[%clk 01:00:57]}
{[%emt 00:12:12]} 12. b3 {[%clk 01:13:08]} {[%emt 00:01:25]} d5 {[%clk
00:50:48]} {[%emt 00:10:39]} 13. Bb2 {[%clk 01:12:25]} {[%emt 00:01:13]} Ned7
{[%clk 00:46:52]} {[%emt 00:04:26]} 14. Nf4 {[%clk 01:10:54]} {[%emt 00:02:01]}
c6 {[%clk 00:40:03]} {[%emt 00:07:20]} 15. O-O {[%clk 01:06:16]} {[%emt
00:05:07]} Nb6 {[%clk 00:35:03]} {[%emt 00:05:31]} 16. Rad1 {[%clk 01:01:19]}
{[%emt 00:05:26]} Qe7 {[%clk 00:34:20]} {[%emt 00:01:13]} 17. Bxf6 {[%clk
00:56:42]} {[%emt 00:05:06]} Qxf6 {[%clk 00:34:02]} {[%emt 00:00:49]} 18. cxd5
{[%clk 00:56:42]} {[%emt 00:00:31]} cxd5 {[%clk 00:33:28]} {[%emt 00:01:04]} 19.
Nxd5 {[%clk 00:55:44]} {[%emt 00:01:27]} Nxd5 {[%emt 00:00:51]} 20. Bxd5 {[%clk
00:55:58]} {[%emt 00:00:15]} Bxd5 {[%clk 00:32:42]} {[%emt 00:00:57]} 21. Rxd5
{[%clk 00:56:17]} {[%emt 00:00:11]} Rac8 {[%clk 00:32:35]} {[%emt 00:00:38]} 22.
Qd2 {[%clk 00:50:40]} {[%emt 00:06:05]} Rc7 {[%clk 00:28:47]} {[%emt 00:04:19]}
23. Rd1 {[%clk 00:48:46]} {[%emt 00:02:22]} h6 {[%clk 00:27:36]} {[%emt
00:01:43]} 24. Qd4 {[%clk 00:38:15]} {[%emt 00:10:59]} Qa6 {[%clk 00:25:37]}
{[%emt 00:02:32]} 25. Rd8 {[%clk 00:36:53]} {[%emt 00:01:51]} Rc8 {[%clk
00:24:46]} {[%emt 00:01:22]} 26. Rd7 {[%clk 00:35:08]} {[%emt 00:02:14]} Rc2
{[%clk 00:23:27]} {[%emt 00:01:49]} 27. a4 {[%clk 00:31:56]} {[%emt 00:03:41]}
b6 {[%clk 00:18:34]} {[%emt 00:33:02]} 28. Qf4 {[%clk 00:20:34]} Qe2 {[%clk
00:17:01]} 29. Rd8 {[%clk 00:19:05]} Rc8 {[%clk 00:16:40]} 30. R8d2 {[%clk
00:18:36]} Qh5 {[%clk 00:15:50]} 31. Rd7 {[%clk 00:18:24]} a6 {[%clk 00:15:05]}
32. Kg2 {[%clk 00:16:50]} b5 {[%clk 00:14:25]} 33. R1d5 {[%clk 00:16:40]} Qg6
{[%clk 00:14:02]} 34. axb5 {[%clk 00:16:11]} axb5 {[%clk 00:14:03]} 35. R7d6
{[%clk 00:15:42]} {[%emt 00:00:36]} Qc2 {[%clk 00:13:52]} {[%emt 00:00:41]} 36.
Rxb5 {[%clk 00:15:59]} {[%emt 00:00:14]} Rc3 {[%clk 00:13:21]} {[%emt
00:01:00]} 37. b4 {[%emt 00:00:57]} Rc4 {[%clk 00:13:24]} 38. Rd4 {[%clk
00:15:13]} {[%emt 00:01:15]} Rxd4 {[%clk 00:12:52]} {[%emt 00:01:01]} 39. Qxd4
{[%clk 00:15:37]} {[%emt 00:00:06]} Qc6+ {[%clk 00:13:00]} {[%emt 00:00:22]} 40.
Qd5 {[%clk 00:15:56]} {[%emt 00:00:12]} Qxd5+ {[%clk 00:13:24]} {[%emt
00:00:07]} 41. Rxd5 {[%emt 00:01:05]} Rb8 {[%clk 00:13:45]} 42. Rd4 {[%clk
00:15:44]} {[%emt 00:00:14]} f6 {[%clk 00:14:05]} {[%emt 00:00:09]} 43. Kf3
{[%clk 00:16:04]} {[%emt 00:00:09]} Kf7 {[%clk 00:14:29]} {[%emt 00:00:07]} 44.
Ke4 {[%clk 00:15:57]} {[%emt 00:00:35]} Ke6 {[%clk 00:14:53]} {[%emt 00:00:08]}
45. Kd3 {[%clk 00:15:45]} {[%emt 00:04:45]} Rb5 {[%clk 00:14:46]} 46. Kc4
{[%clk 00:15:40]} Rf5 {[%clk 00:15:11]} 47. Rf4 1-0

[ePGN "0.1;DGT LiveChess/2.2.6"]

[Event "Régional Jeunes Occitanie 2024"]
[Site "L'Isle Jourdain, France"]
[Date "2024.02.23"]
[Round "5.3"]
[White "DUCES-AKHVERDOFF, Gabriel"]
[Black "PIERROT, Yohann"]
[Result "1-0"]
[TimeControl "1h30 + 30s/cps"]
[WhiteElo "1797"]
[BlackElo "2053"]

1. d4 {[%clk 01:30:38]} {[%emt 00:00:21]} Nf6 {[%clk 01:30:40]} {[%emt
00:00:22]} 2. c4 {[%clk 01:30:47]} {[%emt 00:00:21]} g6 {[%clk 01:31:06]}
{[%emt 00:00:04]} 3. Nc3 {[%clk 01:31:12]} {[%emt 00:00:05]} d5 {[%clk
01:31:34]} {[%emt 00:00:02]} 4. cxd5 {[%clk 01:31:32]} {[%emt 00:00:09]} Nxd5
{[%clk 01:31:59]} {[%emt 00:00:05]} 5. e4 {[%clk 01:31:55]} {[%emt 00:00:07]}
Nxc3 {[%clk 01:32:26]} {[%emt 00:00:03]} 6. bxc3 {[%clk 01:32:17]} {[%emt
00:00:07]} Bg7 {[%clk 01:32:55]} {[%emt 00:00:02]} 7. Bb5+ {[%clk 01:32:36]}
{[%emt 00:00:11]} Nd7 {[%clk 01:30:40]} {[%emt 00:02:45]} 8. Nf3 {[%clk
01:26:48]} {[%emt 00:06:17]} O-O {[%clk 01:30:52]} {[%emt 00:00:19]} 9. O-O
{[%clk 01:25:42]} {[%emt 00:01:36]} a6 {[%clk 01:31:20]} {[%emt 00:00:03]} 10.
Bd3 {[%clk 01:17:13]} {[%emt 00:08:58]} c5 {[%clk 01:29:36]} {[%emt 00:02:14]}
11. Be3 {[%clk 01:15:34]} {[%emt 00:02:09]} Qa5 {[%clk 01:27:19]} {[%emt
00:02:47]} 12. Qc2 {[%clk 01:10:48]} {[%emt 00:05:16]} b5 {[%clk 01:24:03]}
{[%emt 00:03:47]} 13. a4 {[%clk 01:05:25]} {[%emt 00:05:53]} bxa4 {[%clk
01:20:53]} {[%emt 00:03:40]} 14. Rxa4 {[%clk 01:03:42]} {[%emt 00:02:14]} Qc7
{[%clk 01:20:19]} {[%emt 00:01:04]} 15. Qa2 {[%clk 00:51:57]} {[%emt 00:12:14]}
Bb7 {[%clk 01:17:37]} {[%emt 00:03:12]} 16. Nd2 {[%clk 00:47:08]} {[%emt
00:05:18]} Nf6 {[%clk 01:16:26]} {[%emt 00:01:41]} 17. f3 {[%clk 00:44:53]}
{[%emt 00:02:44]} Rfd8 {[%clk 01:13:37]} {[%emt 00:03:19]} 18. Bxa6 {[%clk
00:40:30]} {[%emt 00:04:54]} cxd4 {[%clk 01:10:43]} {[%emt 00:03:24]} 19. cxd4
{[%clk 00:39:49]} {[%emt 00:01:11]} Qc3 {[%clk 01:07:13]} {[%emt 00:03:56]} 20.
Re1 {[%clk 00:35:05]} {[%emt 00:05:17]} Bxa6 {[%clk 00:35:23]} {[%emt
00:32:21]} 21. Rxa6 {[%clk 00:35:12]} {[%emt 00:00:22]} Rxa6 {[%clk 00:27:52]}
{[%emt 00:08:01]} 22. Qxa6 {[%clk 00:35:34]} {[%emt 00:00:08]} Ne8 {[%clk
00:28:09]} {[%emt 00:00:13]} 23. d5 {[%clk 00:22:52]} {[%emt 00:13:12]} Nd6
{[%clk 00:23:39]} {[%emt 00:05:01]} 24. Qe2 {[%clk 00:20:23]} {[%emt 00:02:58]}
Ra8 {[%clk 00:21:26]} {[%emt 00:02:43]} 25. Nf1 {[%clk 00:19:35]} {[%emt
00:01:18]} Qb4 {[%clk 00:17:04]} {[%emt 00:04:53]} 26. Rc1 {[%clk 00:19:01]}
{[%emt 00:01:03]} Qa3 {[%clk 00:14:57]} {[%emt 00:02:38]} 27. Qd2 {[%clk
00:17:08]} {[%emt 00:02:23]} Qa4 {[%clk 00:14:15]} {[%emt 00:14:32]} 28. Rc7
{[%clk 00:16:13]} Qb5 {[%clk 00:12:23]} 29. Rc5 {[%clk 00:15:37]} Qa4 {[%clk
00:11:47]} 30. Qc2 {[%clk 00:14:56]} Qa1 {[%clk 00:11:38]} 31. Qc1 {[%clk
00:14:55]} Qe5 {[%clk 00:10:49]} 32. Qd2 {[%clk 00:14:38]} Ra1 {[%clk
00:09:54]} 33. Rc1 {[%clk 00:14:50]} Ra4 {[%clk 00:08:54]} {[%emt 00:00:19]} 34.
Bf4 {[%clk 00:12:58]} {[%emt 00:02:21]} Qd4+ {[%clk 00:04:18]} {[%emt
00:05:07]} 35. Qxd4 {[%clk 00:13:21]} {[%emt 00:00:08]} Bxd4+ {[%clk 00:04:43]}
{[%emt 00:00:05]} 36. Be3 {[%clk 00:13:13]} {[%emt 00:03:10]} Nb5 {[%clk
00:04:55]} 37. Bxd4 {[%clk 00:12:18]} Nxd4 {[%clk 00:05:24]} 38. Rd1 {[%clk
00:12:28]} Kf8 {[%clk 00:04:21]} {[%emt 00:01:04]} 39. Kf2 {[%clk 00:12:23]}
{[%emt 00:00:34]} Ke8 {[%clk 00:03:52]} {[%emt 00:00:59]} 40. Rd2 {[%clk
00:11:40]} {[%emt 00:01:12]} Kd7 {[%clk 00:03:28]} {[%emt 00:00:55]} 41. Ne3
{[%clk 00:11:05]} {[%emt 00:01:05]} Nb5 {[%clk 00:02:41]} {[%emt 00:01:17]} 42.
Rb2 {[%clk 00:10:29]} {[%emt 00:01:06]} Nc7 {[%clk 00:01:15]} {[%emt 00:01:56]}
43. Ng4 {[%clk 00:10:01]} {[%emt 00:00:59]} f6 {[%clk 00:01:14]} {[%emt
00:00:30]} 44. Rb8 {[%clk 00:09:13]} {[%emt 00:01:18]} h5 {[%clk 00:01:15]}
{[%emt 00:00:29]} 45. Ne3 {[%clk 00:09:29]} {[%emt 00:00:14]} Ne8 {[%clk
00:01:11]} {[%emt 00:00:34]} 46. h4 {[%clk 00:08:15]} {[%emt 00:01:44]} Ra2+
{[%clk 00:00:56]} {[%emt 00:00:45]} 47. Kg3 {[%clk 00:08:24]} {[%emt 00:00:20]}
g5 {[%clk 00:00:56]} {[%emt 00:00:31]} 48. Nf5 {[%clk 00:07:28]} {[%emt
00:01:26]} Ra7 {[%clk 00:00:48]} {[%emt 00:00:38]} 49. Rb6 {[%clk 00:07:13]}
{[%emt 00:07:22]} g4 {[%clk 00:00:33]} 50. fxg4 {[%clk 00:06:48]} hxg4 {[%clk
00:00:40]} 51. Kxg4 {[%clk 00:07:06]} Ra4 {[%clk 00:00:47]} 52. Kf4 {[%clk
00:07:11]} Ra2 {[%clk 00:00:31]} 53. g3 {[%clk 00:07:29]} 1-0